{"text_format":"1","workbook":"xlsx","n_sheets":2,"sheets":["2017","2018"],"not_rendered":{"charts":0,"images":0,"macros":1,"external_links":1,"defined_names":2,"comments":0,"pivot_tables":0},"unopened":[],"bounds":{"document_bytes":16777216,"sheet_cells":100000,"rows_first":2000,"rows_last":500,"rows_between":2000,"halvings":0,"cell_chars":16384,"cell_head_chars":4096},"cells_cut":0,"cells_raw":0,"read":"whole","date_system":"1900"}

{"sheet":"2017","index":0,"n_rows":15,"n_cols":12,"rows_kept":15,"cut":false,"hidden":false,"merged":[[0,0,0,11]]}
["Stavy jídel za období 2017"]
["Měsíc","Zaměstnanci - jídelna","Studenti","Stážisté","Důchodci","Exbio","Cizí","Zaměstnanci - tablet","Jesle","Školka","Celkem","Z toho jídelna"]
["leden",{"$f":"[1]!Tabulka_ExterníData_15[[#Totals],[Zaměstnanci FN]]","v":25606},{"$f":"[1]!Tabulka_ExterníData_15[[#Totals],[Studenti]]","v":3499},{"$f":"[1]!Tabulka_ExterníData_15[[#Totals],[Stážisté]]","v":211},{"$f":"[1]!Tabulka_ExterníData_15[[#Totals],[Důchodci]]","v":2395},{"$f":"[1]!Tabulka_ExterníData_15[[#Totals],[Exbio]]","v":262},{"$f":"[1]!Tabulka_ExterníData_15[[#Totals],[Cizí]]","v":3236},{"$f":"[1]!Tabulka_ExterníData_15[[#Totals],[Tablet]]","v":14128},{"$f":"[1]!Tabulka_ExterníData_15[[#Totals],[Jesle]]","v":220},{"$f":"[1]!Tabulka_ExterníData_15[[#Totals],[Školka]]","v":854},{"$f":"SUM(B3:J3)","v":50411},{"$f":"Tabulka_ExterníData_154[[#This Row],[Zaměstnanci - jídelna]]+Tabulka_ExterníData_154[[#This Row],[Studenti]]+Tabulka_ExterníData_154[[#This Row],[Stážisté]]+Tabulka_ExterníData_154[[#This Row],[Důchodci]]+Tabulka_ExterníData_154[[#This Row],[Exbio]]+Tabulka_ExterníData_154[[#This Row],[Cizí]]","v":35209}]
["únor",{"$f":"[1]!Tabulka_ExterníData_16[[#Totals],[Zaměstnanci FN]]","v":23080},{"$f":"[1]!Tabulka_ExterníData_16[[#Totals],[Studenti]]","v":4406},{"$f":"[1]!Tabulka_ExterníData_16[[#Totals],[Stážisté]]","v":249},{"$f":"[1]!Tabulka_ExterníData_16[[#Totals],[Důchodci]]","v":2338},{"$f":"[1]!Tabulka_ExterníData_16[[#Totals],[Exbio]]","v":263},{"$f":"[1]!Tabulka_ExterníData_16[[#Totals],[Cizí]]","v":2963},{"$f":"[1]!Tabulka_ExterníData_16[[#Totals],[Tablet]]","v":13022},{"$f":"[1]!Tabulka_ExterníData_16[[#Totals],[Jesle]]","v":200},{"$f":"[1]!Tabulka_ExterníData_16[[#Totals],[Školka]]","v":719},{"$f":"SUM(B4:J4)","v":47240},{"$f":"Tabulka_ExterníData_154[[#This Row],[Zaměstnanci - jídelna]]+Tabulka_ExterníData_154[[#This Row],[Studenti]]+Tabulka_ExterníData_154[[#This Row],[Stážisté]]+Tabulka_ExterníData_154[[#This Row],[Důchodci]]+Tabulka_ExterníData_154[[#This Row],[Exbio]]+Tabulka_ExterníData_154[[#This Row],[Cizí]]","v":33299}]
["březen",{"$f":"[1]!Tabulka_ExterníData_17[[#Totals],[Zaměstnanci FN]]","v":26565},{"$f":"[1]!Tabulka_ExterníData_17[[#Totals],[Studenti]]","v":9402},{"$f":"[1]!Tabulka_ExterníData_17[[#Totals],[Stážisté]]","v":277},{"$f":"[1]!Tabulka_ExterníData_17[[#Totals],[Důchodci]]","v":2767},{"$f":"[1]!Tabulka_ExterníData_17[[#Totals],[Exbio]]","v":292},{"$f":"[1]!Tabulka_ExterníData_17[[#Totals],[Cizí]]","v":3326},{"$f":"[1]!Tabulka_ExterníData_17[[#Totals],[Tablet]]","v":14847},{"$f":"[1]!Tabulka_ExterníData_17[[#Totals],[Jesle]]","v":230},{"$f":"[1]!Tabulka_ExterníData_17[[#Totals],[Školka]]","v":847},58553,{"$f":"Tabulka_ExterníData_154[[#This Row],[Zaměstnanci - jídelna]]+Tabulka_ExterníData_154[[#This Row],[Studenti]]+Tabulka_ExterníData_154[[#This Row],[Stážisté]]+Tabulka_ExterníData_154[[#This Row],[Důchodci]]+Tabulka_ExterníData_154[[#This Row],[Exbio]]+Tabulka_ExterníData_154[[#This Row],[Cizí]]","v":42629}]
["duben",{"$f":"[1]!Tabulka_ExterníData_18[[#Totals],[Zaměstnanci FN]]","v":21314},{"$f":"[1]!Tabulka_ExterníData_18[[#Totals],[Studenti]]","v":7323},{"$f":"[1]!Tabulka_ExterníData_18[[#Totals],[Stážisté]]","v":235},{"$f":"[1]!Tabulka_ExterníData_18[[#Totals],[Důchodci]]","v":2194},{"$f":"[1]!Tabulka_ExterníData_18[[#Totals],[Exbio]]","v":228},{"$f":"[1]!Tabulka_ExterníData_18[[#Totals],[Cizí]]","v":2792},{"$f":"[1]!Tabulka_ExterníData_18[[#Totals],[Tablet]]","v":12737},{"$f":"[1]!Tabulka_ExterníData_18[[#Totals],[Jesle]]","v":180},{"$f":"[1]!Tabulka_ExterníData_18[[#Totals],[Školka]]","v":734},47737,{"$f":"Tabulka_ExterníData_154[[#This Row],[Zaměstnanci - jídelna]]+Tabulka_ExterníData_154[[#This Row],[Studenti]]+Tabulka_ExterníData_154[[#This Row],[Stážisté]]+Tabulka_ExterníData_154[[#This Row],[Důchodci]]+Tabulka_ExterníData_154[[#This Row],[Exbio]]+Tabulka_ExterníData_154[[#This Row],[Cizí]]","v":34086}]
["květen",{"$f":"[1]!Tabulka_ExterníData_110[[#Totals],[Zaměstnanci FN]]","v":24409},{"$f":"[1]!Tabulka_ExterníData_110[[#Totals],[Studenti]]","v":6257},{"$f":"[1]!Tabulka_ExterníData_110[[#Totals],[Stážisté]]","v":160},{"$f":"[1]!Tabulka_ExterníData_110[[#Totals],[Důchodci]]","v":2463},{"$f":"[1]!Tabulka_ExterníData_110[[#Totals],[Exbio]]","v":270},{"$f":"[1]!Tabulka_ExterníData_110[[#Totals],[Cizí]]","v":3154},{"$f":"[1]!Tabulka_ExterníData_110[[#Totals],[Tablet]]","v":13930},{"$f":"[1]!Tabulka_ExterníData_110[[#Totals],[Jesle]]","v":212},{"$f":"[1]!Tabulka_ExterníData_110[[#Totals],[Školka]]","v":901},51756,{"$f":"Tabulka_ExterníData_154[[#This Row],[Zaměstnanci - jídelna]]+Tabulka_ExterníData_154[[#This Row],[Studenti]]+Tabulka_ExterníData_154[[#This Row],[Stážisté]]+Tabulka_ExterníData_154[[#This Row],[Důchodci]]+Tabulka_ExterníData_154[[#This Row],[Exbio]]+Tabulka_ExterníData_154[[#This Row],[Cizí]]","v":36713}]
["červen",{"$f":"[1]!Tabulka_ExterníData_111[[#Totals],[Zaměstnanci FN]]","v":24686},{"$f":"[1]!Tabulka_ExterníData_111[[#Totals],[Studenti]]","v":1577},{"$f":"[1]!Tabulka_ExterníData_111[[#Totals],[Stážisté]]","v":77},{"$f":"[1]!Tabulka_ExterníData_111[[#Totals],[Důchodci]]","v":2391},{"$f":"[1]!Tabulka_ExterníData_111[[#Totals],[Exbio]]","v":247},{"$f":"[1]!Tabulka_ExterníData_111[[#Totals],[Cizí]]","v":3056},{"$f":"[1]!Tabulka_ExterníData_111[[#Totals],[Tablet]]","v":13744},{"$f":"[1]!Tabulka_ExterníData_111[[#Totals],[Jesle]]","v":220},{"$f":"[1]!Tabulka_ExterníData_111[[#Totals],[Školka]]","v":925},46923,{"$f":"Tabulka_ExterníData_154[[#This Row],[Zaměstnanci - jídelna]]+Tabulka_ExterníData_154[[#This Row],[Studenti]]+Tabulka_ExterníData_154[[#This Row],[Stážisté]]+Tabulka_ExterníData_154[[#This Row],[Důchodci]]+Tabulka_ExterníData_154[[#This Row],[Exbio]]+Tabulka_ExterníData_154[[#This Row],[Cizí]]","v":32034}]
["červenec",{"$f":"[1]!Tabulka_ExterníData_13[[#Totals],[Zaměstnanci FN]]","v":14117},{"$f":"[1]!Tabulka_ExterníData_13[[#Totals],[Studenti]]","v":8},{"$f":"[1]!Tabulka_ExterníData_13[[#Totals],[Stážisté]]","v":5},{"$f":"[1]!Tabulka_ExterníData_13[[#Totals],[Důchodci]]","v":1671},{"$f":"[1]!Tabulka_ExterníData_13[[#Totals],[Exbio]]","v":168},{"$f":"[1]!Tabulka_ExterníData_13[[#Totals],[Cizí]]","v":225},{"$f":"[1]!Tabulka_ExterníData_13[[#Totals],[Tablet]]","v":12869},{"$f":"[1]!Tabulka_ExterníData_13[[#Totals],[Jesle]]","v":188},{"$f":"[1]!Tabulka_ExterníData_13[[#Totals],[Školka]]","v":639},29890,{"$f":"Tabulka_ExterníData_154[[#This Row],[Zaměstnanci - jídelna]]+Tabulka_ExterníData_154[[#This Row],[Studenti]]+Tabulka_ExterníData_154[[#This Row],[Stážisté]]+Tabulka_ExterníData_154[[#This Row],[Důchodci]]+Tabulka_ExterníData_154[[#This Row],[Exbio]]+Tabulka_ExterníData_154[[#This Row],[Cizí]]","v":16194}]
["srpen",{"$f":"[1]!Tabulka_ExterníData_112[[#Totals],[Zaměstnanci FN]]","v":17823},{"$f":"[1]!Tabulka_ExterníData_112[[#Totals],[Studenti]]","v":0},{"$f":"[1]!Tabulka_ExterníData_112[[#Totals],[Stážisté]]","v":3},{"$f":"[1]!Tabulka_ExterníData_112[[#Totals],[Důchodci]]","v":1936},{"$f":"[1]!Tabulka_ExterníData_112[[#Totals],[Exbio]]","v":214},{"$f":"[1]!Tabulka_ExterníData_112[[#Totals],[Cizí]]","v":257},{"$f":"[1]!Tabulka_ExterníData_112[[#Totals],[Tablet]]","v":15854},{"$f":"[1]!Tabulka_ExterníData_112[[#Totals],[Jesle]]","v":140},{"$f":"[1]!Tabulka_ExterníData_112[[#Totals],[Školka]]","v":663},36890,{"$f":"Tabulka_ExterníData_154[[#This Row],[Zaměstnanci - jídelna]]+Tabulka_ExterníData_154[[#This Row],[Studenti]]+Tabulka_ExterníData_154[[#This Row],[Stážisté]]+Tabulka_ExterníData_154[[#This Row],[Důchodci]]+Tabulka_ExterníData_154[[#This Row],[Exbio]]+Tabulka_ExterníData_154[[#This Row],[Cizí]]","v":20233}]
["září",{"$f":"[1]!Tabulka_ExterníData_19[[#Totals],[Zaměstnanci FN]]","v":18553},{"$f":"[1]!Tabulka_ExterníData_19[[#Totals],[Studenti]]","v":2},{"$f":"[1]!Tabulka_ExterníData_19[[#Totals],[Stážisté]]","v":2},{"$f":"[1]!Tabulka_ExterníData_19[[#Totals],[Důchodci]]","v":1837},{"$f":"[1]!Tabulka_ExterníData_19[[#Totals],[Exbio]]","v":221},{"$f":"[1]!Tabulka_ExterníData_19[[#Totals],[Cizí]]","v":358},{"$f":"[1]!Tabulka_ExterníData_19[[#Totals],[Tablet]]","v":16590},{"$f":"[1]!Tabulka_ExterníData_19[[#Totals],[Jesle]]","v":228},{"$f":"[1]!Tabulka_ExterníData_19[[#Totals],[Školka]]","v":773},38564,{"$f":"Tabulka_ExterníData_154[[#This Row],[Zaměstnanci - jídelna]]+Tabulka_ExterníData_154[[#This Row],[Studenti]]+Tabulka_ExterníData_154[[#This Row],[Stážisté]]+Tabulka_ExterníData_154[[#This Row],[Důchodci]]+Tabulka_ExterníData_154[[#This Row],[Exbio]]+Tabulka_ExterníData_154[[#This Row],[Cizí]]","v":20973}]
["říjen",{"$f":"[1]!Tabulka_ExterníData_14[[#Totals],[Zaměstnanci FN]]","v":26257},{"$f":"[1]!Tabulka_ExterníData_14[[#Totals],[Studenti]]","v":8241},{"$f":"[1]!Tabulka_ExterníData_14[[#Totals],[Stážisté]]","v":183},{"$f":"[1]!Tabulka_ExterníData_14[[#Totals],[Důchodci]]","v":2483},{"$f":"[1]!Tabulka_ExterníData_14[[#Totals],[Exbio]]","v":243},{"$f":"[1]!Tabulka_ExterníData_14[[#Totals],[Cizí]]","v":2618},{"$f":"[1]!Tabulka_ExterníData_14[[#Totals],[Tablet]]","v":16549},{"$f":"[1]!Tabulka_ExterníData_14[[#Totals],[Jesle]]","v":264},{"$f":"[1]!Tabulka_ExterníData_14[[#Totals],[Školka]]","v":843},57681,{"$f":"Tabulka_ExterníData_154[[#This Row],[Zaměstnanci - jídelna]]+Tabulka_ExterníData_154[[#This Row],[Studenti]]+Tabulka_ExterníData_154[[#This Row],[Stážisté]]+Tabulka_ExterníData_154[[#This Row],[Důchodci]]+Tabulka_ExterníData_154[[#This Row],[Exbio]]+Tabulka_ExterníData_154[[#This Row],[Cizí]]","v":40025}]
["listopad",{"$f":"[1]!Tabulka_ExterníData_114[[#Totals],[Zaměstnanci FN]]","v":25660},{"$f":"[1]!Tabulka_ExterníData_114[[#Totals],[Studenti]]","v":8654},{"$f":"[1]!Tabulka_ExterníData_114[[#Totals],[Stážisté]]","v":287},{"$f":"[1]!Tabulka_ExterníData_114[[#Totals],[Důchodci]]","v":2586},{"$f":"[1]!Tabulka_ExterníData_114[[#Totals],[Exbio]]","v":224},{"$f":"[1]!Tabulka_ExterníData_114[[#Totals],[Cizí]]","v":2518},{"$f":"[1]!Tabulka_ExterníData_114[[#Totals],[Tablet]]","v":16146},{"$f":"[1]!Tabulka_ExterníData_114[[#Totals],[Jesle]]","v":252},{"$f":"[1]!Tabulka_ExterníData_114[[#Totals],[Školka]]","v":820},57147,{"$f":"Tabulka_ExterníData_154[[#This Row],[Zaměstnanci - jídelna]]+Tabulka_ExterníData_154[[#This Row],[Studenti]]+Tabulka_ExterníData_154[[#This Row],[Stážisté]]+Tabulka_ExterníData_154[[#This Row],[Důchodci]]+Tabulka_ExterníData_154[[#This Row],[Exbio]]+Tabulka_ExterníData_154[[#This Row],[Cizí]]","v":39929}]
["prosinec",{"$f":"[1]!Tabulka_ExterníData_113[[#Totals],[Zaměstnanci FN]]","v":20053},{"$f":"[1]!Tabulka_ExterníData_113[[#Totals],[Studenti]]","v":5939},{"$f":"[1]!Tabulka_ExterníData_113[[#Totals],[Stážisté]]","v":122},{"$f":"[1]!Tabulka_ExterníData_113[[#Totals],[Důchodci]]","v":2138},{"$f":"[1]!Tabulka_ExterníData_113[[#Totals],[Exbio]]","v":163},{"$f":"[1]!Tabulka_ExterníData_113[[#Totals],[Cizí]]","v":1782},{"$f":"[1]!Tabulka_ExterníData_113[[#Totals],[Tablet]]","v":13467},{"$f":"[1]!Tabulka_ExterníData_113[[#Totals],[Jesle]]","v":192},{"$f":"[1]!Tabulka_ExterníData_113[[#Totals],[Školka]]","v":619},44475,{"$f":"Tabulka_ExterníData_154[[#This Row],[Zaměstnanci - jídelna]]+Tabulka_ExterníData_154[[#This Row],[Studenti]]+Tabulka_ExterníData_154[[#This Row],[Stážisté]]+Tabulka_ExterníData_154[[#This Row],[Důchodci]]+Tabulka_ExterníData_154[[#This Row],[Exbio]]+Tabulka_ExterníData_154[[#This Row],[Cizí]]","v":30197}]
["celkem",{"$f":"SUM(B3:B14)","v":268123},55308,1811,27199,2795,26285,173883,2526,9337,567267,381521]

{"sheet":"2018","index":1,"n_rows":15,"n_cols":12,"rows_kept":15,"cut":false,"hidden":false,"merged":[[0,0,0,11]]}
["Stavy jídel za období 2018"]
["Měsíc","Zaměstnanci - jídelna","Studenti","Stážisté","Důchodci","Exbio","Cizí","Zaměstnanci - tablet","Jesle","Školka","Celkem","Z toho jídelna"]
["leden",null,null,null,null,null,null,null,null,null,{"$f":"SUM(B3:J3)","v":0},{"$f":"Tabulka_ExterníData_1542[[#This Row],[Zaměstnanci - jídelna]]+Tabulka_ExterníData_1542[[#This Row],[Studenti]]+Tabulka_ExterníData_1542[[#This Row],[Stážisté]]+Tabulka_ExterníData_1542[[#This Row],[Důchodci]]+Tabulka_ExterníData_1542[[#This Row],[Exbio]]+Tabulka_ExterníData_1542[[#This Row],[Cizí]]","v":0}]
["únor",null,null,null,null,null,null,null,null,null,{"$f":"SUM(B4:J4)","v":0},{"$f":"Tabulka_ExterníData_1542[[#This Row],[Zaměstnanci - jídelna]]+Tabulka_ExterníData_1542[[#This Row],[Studenti]]+Tabulka_ExterníData_1542[[#This Row],[Stážisté]]+Tabulka_ExterníData_1542[[#This Row],[Důchodci]]+Tabulka_ExterníData_1542[[#This Row],[Exbio]]+Tabulka_ExterníData_1542[[#This Row],[Cizí]]","v":0}]
["březen",null,null,null,null,null,null,null,null,null,0,{"$f":"Tabulka_ExterníData_1542[[#This Row],[Zaměstnanci - jídelna]]+Tabulka_ExterníData_1542[[#This Row],[Studenti]]+Tabulka_ExterníData_1542[[#This Row],[Stážisté]]+Tabulka_ExterníData_1542[[#This Row],[Důchodci]]+Tabulka_ExterníData_1542[[#This Row],[Exbio]]+Tabulka_ExterníData_1542[[#This Row],[Cizí]]","v":0}]
["duben",null,null,null,null,null,null,null,null,null,0,{"$f":"Tabulka_ExterníData_1542[[#This Row],[Zaměstnanci - jídelna]]+Tabulka_ExterníData_1542[[#This Row],[Studenti]]+Tabulka_ExterníData_1542[[#This Row],[Stážisté]]+Tabulka_ExterníData_1542[[#This Row],[Důchodci]]+Tabulka_ExterníData_1542[[#This Row],[Exbio]]+Tabulka_ExterníData_1542[[#This Row],[Cizí]]","v":0}]
["květen",null,null,null,null,null,null,null,null,null,0,{"$f":"Tabulka_ExterníData_1542[[#This Row],[Zaměstnanci - jídelna]]+Tabulka_ExterníData_1542[[#This Row],[Studenti]]+Tabulka_ExterníData_1542[[#This Row],[Stážisté]]+Tabulka_ExterníData_1542[[#This Row],[Důchodci]]+Tabulka_ExterníData_1542[[#This Row],[Exbio]]+Tabulka_ExterníData_1542[[#This Row],[Cizí]]","v":0}]
["červen",null,null,null,null,null,null,null,null,null,0,{"$f":"Tabulka_ExterníData_1542[[#This Row],[Zaměstnanci - jídelna]]+Tabulka_ExterníData_1542[[#This Row],[Studenti]]+Tabulka_ExterníData_1542[[#This Row],[Stážisté]]+Tabulka_ExterníData_1542[[#This Row],[Důchodci]]+Tabulka_ExterníData_1542[[#This Row],[Exbio]]+Tabulka_ExterníData_1542[[#This Row],[Cizí]]","v":0}]
["červenec",null,null,null,null,null,null,null,null,null,0,{"$f":"Tabulka_ExterníData_1542[[#This Row],[Zaměstnanci - jídelna]]+Tabulka_ExterníData_1542[[#This Row],[Studenti]]+Tabulka_ExterníData_1542[[#This Row],[Stážisté]]+Tabulka_ExterníData_1542[[#This Row],[Důchodci]]+Tabulka_ExterníData_1542[[#This Row],[Exbio]]+Tabulka_ExterníData_1542[[#This Row],[Cizí]]","v":0}]
["srpen",null,null,null,null,null,null,null,null,null,0,{"$f":"Tabulka_ExterníData_1542[[#This Row],[Zaměstnanci - jídelna]]+Tabulka_ExterníData_1542[[#This Row],[Studenti]]+Tabulka_ExterníData_1542[[#This Row],[Stážisté]]+Tabulka_ExterníData_1542[[#This Row],[Důchodci]]+Tabulka_ExterníData_1542[[#This Row],[Exbio]]+Tabulka_ExterníData_1542[[#This Row],[Cizí]]","v":0}]
["září",null,null,null,null,null,null,null,null,null,0,{"$f":"Tabulka_ExterníData_1542[[#This Row],[Zaměstnanci - jídelna]]+Tabulka_ExterníData_1542[[#This Row],[Studenti]]+Tabulka_ExterníData_1542[[#This Row],[Stážisté]]+Tabulka_ExterníData_1542[[#This Row],[Důchodci]]+Tabulka_ExterníData_1542[[#This Row],[Exbio]]+Tabulka_ExterníData_1542[[#This Row],[Cizí]]","v":0}]
["říjen",null,null,null,null,null,null,null,null,null,0,{"$f":"Tabulka_ExterníData_1542[[#This Row],[Zaměstnanci - jídelna]]+Tabulka_ExterníData_1542[[#This Row],[Studenti]]+Tabulka_ExterníData_1542[[#This Row],[Stážisté]]+Tabulka_ExterníData_1542[[#This Row],[Důchodci]]+Tabulka_ExterníData_1542[[#This Row],[Exbio]]+Tabulka_ExterníData_1542[[#This Row],[Cizí]]","v":0}]
["listopad",null,null,null,null,null,null,null,null,null,0,{"$f":"Tabulka_ExterníData_1542[[#This Row],[Zaměstnanci - jídelna]]+Tabulka_ExterníData_1542[[#This Row],[Studenti]]+Tabulka_ExterníData_1542[[#This Row],[Stážisté]]+Tabulka_ExterníData_1542[[#This Row],[Důchodci]]+Tabulka_ExterníData_1542[[#This Row],[Exbio]]+Tabulka_ExterníData_1542[[#This Row],[Cizí]]","v":0}]
["prosinec",null,null,null,null,null,null,null,null,null,0,{"$f":"Tabulka_ExterníData_1542[[#This Row],[Zaměstnanci - jídelna]]+Tabulka_ExterníData_1542[[#This Row],[Studenti]]+Tabulka_ExterníData_1542[[#This Row],[Stážisté]]+Tabulka_ExterníData_1542[[#This Row],[Důchodci]]+Tabulka_ExterníData_1542[[#This Row],[Exbio]]+Tabulka_ExterníData_1542[[#This Row],[Cizí]]","v":0}]
["celkem",{"$f":"SUM(B3:B14)","v":0},0,0,0,0,0,0,0,0,0,0]